[Event "DPMM 2023-24"]
[Site "Germany"]
[Date "2024.03.15"]
[Round "3.8"]
[White "Ignatiev, Felix N"]
[Black "Ramirez Marin, Ivan"]
[Result "1-0"]
[WhiteElo "2307"]
[BlackElo "2272"]
[PlyCount "71"]
[EventDate "2024.03.14"]
[EventType "team-tourn"]
[EventCountry "GER"]
[TimeControl "40/6000:20/3000:0"]

1. e4 {[%emt 0:00:00]} c5 {[%emt 0:00:00]} 2. Nf3 {[%emt 0:00:00]} Nc6 {[%emt 0:00:00]} 3. d4 {[%emt 0:00:00]} cxd4 {[%emt 0:00:00]} 4. Nxd4 {[%emt 0:00:00]} e5 {[%emt 0:00:00]} 5. Nb5 {[%emt 0:00:00]} d6 {[%emt 0:00:00]} 6. N1c3 {[%emt 0:00:00]} a6 {[%emt 0:00:00]} 7. Na3 {[%emt 0:00:00]} Be7 {[%emt 0:00:00]} 8. Nc4 {[%emt 0:03:54]} b5 {[%emt 0:00:29]} 9. Ne3 {[%emt 0:00:00]} Nf6 {[%emt 0:00:03]} 10. g3 {[%emt 0:01:51]} h5 {[%emt 0:08:52]} 11. Bg2 {[%emt 0:15:07]} h4 {[%emt 0:05:01]} 12. Ncd5 {[%emt 0:02:09]} Be6 {[%emt 0:21:03]} 13. c3 {[%emt 0:03:01]} Rb8 {[%emt 0:07:34]} 14. Nf5 {[%emt 0:10:40]} h3 {[%emt 0:11:44]} 15. Bf3 {[%emt 0:02:54]} Bf8 {[%emt 0:09:19]} 16. Bg5 {[%emt 0:13:32]} Bxd5 {[%emt 0:03:42]} 17. Bxf6 {[%emt 0:03:56]} Qxf6 {[%emt 0:01:26]} 18. Qxd5 {[%emt 0:00:00]} Rb6 {[%emt 0:05:28]} 19. a4 {[%emt 0:12:07]} bxa4 {[%emt 0:01:06]} 20. Bg4 {[%emt 0:04:48]} a3 {[%emt 0:12:23]} 21. Rxa3 {[%emt 0:02:30]} Qd8 {[%emt 0:01:51]} 22. O-O {[%emt 0:05:52]} Ne7 {[%emt 0:09:59]} 23. Qc4 {[%emt 0:00:40]} Nxf5 {[%emt 0:00:00]} 24. Bxf5 {[%emt 0:00:00]} g6 {[%emt 0:00:00]} 25. Bg4 {[%emt 0:01:37]} Be7 {[%emt 0:00:00]} 26. b4 {[%emt 0:02:31]} O-O {[%emt 0:00:00]} 27. Rxa6 {[%emt 0:00:39]} Rxa6 {[%emt 0:00:00]} 28. Qxa6 {[%emt 0:00:00]} f5 {[%emt 0:00:00]} 29. exf5 {[%emt 0:01:39]} gxf5 {[%emt 0:00:00]} 30. Bxh3 {[%emt 0:00:00]} Qc7 {[%emt 0:00:00]} 31. c4 {[%emt 0:01:43]} e4 {[%emt 0:00:00]} 32. c5 {[%emt 0:01:39]} dxc5 {[%emt 0:00:00]} 33. Qg6+ {[%emt 0:00:00]} Kh8 {[%emt 0:00:00]} 34. Bxf5 {[%emt 0:00:00]} Bf6 {[%emt 0:00:00]} 35. Qh6+ {[%emt 0:00:00]} Kg8 {[%emt 0:00:00]} 36. Be6+ {[%emt 0:00:00]} 1-0

[Event "DPMM 2023-24"]
[Site "Germany"]
[Date "2024.03.14"]
[Round "4.1"]
[White "Kollars, Dmitrij"]
[Black "Poltorak, Sebastian"]
[Result "1-0"]
[WhiteElo "2629"]
[BlackElo "2392"]
[PlyCount "91"]
[EventDate "2024.03.14"]
[EventType "team-tourn"]
[EventCountry "GER"]
[TimeControl "40/6000:20/3000:0"]

1. e4 {[%emt 0:00:00]} c6 {[%emt 0:00:00]} 2. Nf3 {[%emt 0:00:00]} d5 {[%emt 0:00:00]} 3. Nc3 {[%emt 0:00:00]} dxe4 {[%emt 0:00:00]} 4. Nxe4 {[%emt 0:00:00]} Nf6 {[%emt 0:00:00]} 5. Qe2 {[%emt 0:00:00]} Nxe4 {[%emt 0:00:00]} 6. Qxe4 {[%emt 0:00:00]} Nd7 {[%emt 0:00:00]} 7. Bc4 {[%emt 0:00:00]} Nf6 {[%emt 0:00:00]} 8. Ne5 {[%emt 0:00:00]} e6 {[%emt 0:00:00]} 9. Qf4 {[%emt 0:00:00]} b5 {[%emt 0:05:42]} 10. Be2 {[%emt 0:00:00]} Qc7 {[%emt 0:01:17]} 11. d4 {[%emt 0:00:00]} Bd6 {[%emt 0:04:35]} 12. Qg3 {[%emt 0:01:37]} O-O {[%emt 0:02:39]} 13. Bh6 {[%emt 0:01:51]} Ne8 {[%emt 0:01:10]} 14. Bf4 {[%emt 0:00:00]} f6 {[%emt 0:11:14]} 15. Nd3 {[%emt 0:00:00]} Bxf4 {[%emt 0:01:44]} 16. Qxf4 {[%emt 0:01:25]} Qxf4 {[%emt 0:08:27]} 17. Nxf4 {[%emt 0:00:00]} Nc7 {[%emt 0:02:33]} 18. Bf3 {[%emt 0:09:41]} Nd5 {[%emt 0:08:48]} 19. Nd3 {[%emt 0:00:06]} Rd8 {[%emt 0:04:28]} 20. O-O-O {[%emt 0:21:58]} a5 {[%emt 0:06:02]} 21. c3 {[%emt 0:02:01]} Kf7 {[%emt 0:02:05]} 22. Nc5 {[%emt 0:03:04]} Ra7 {[%emt 0:00:53]} 23. Rhe1 {[%emt 0:01:26]} Re7 {[%emt 0:02:05]} 24. Rd2 {[%emt 0:06:00]} Rd6 {[%emt 0:01:29]} 25. h4 {[%emt 0:05:06]} Nc7 {[%emt 0:03:25]} 26. a4 {[%emt 0:06:21]} bxa4 {[%emt 0:05:22]} 27. Nxa4 {[%emt 0:00:18]} Re8 {[%emt 0:03:02]} 28. Kc2 {[%emt 0:06:43]} Red8 {[%emt 0:01:01]} 29. Red1 {[%emt 0:00:58]} Nb5 {[%emt 0:02:06]} 30. Nc5 {[%emt 0:01:00]} h6 {[%emt 0:01:41]} 31. h5 {[%emt 0:06:07]} Nc7 {[%emt 0:05:12]} 32. Nb3 {[%emt 0:03:16]} a4 {[%emt 0:01:51]} 33. Nc5 {[%emt 0:00:00]} Na6 {[%emt 0:01:26]} 34. Nxa4 {[%emt 0:00:20]} Bb7 {[%emt 0:00:22]} 35. b4 {[%emt 0:02:31]} R6d7 {[%emt 0:00:28]} 36. Nc5 {[%emt 0:04:40]} Nxc5 {[%emt 0:00:00]} 37. dxc5 {[%emt 0:00:00]} Ke7 {[%emt 0:03:04]} 38. b5 {[%emt 0:01:09]} Rxd2+ {[%emt 0:00:00]} 39. Rxd2 {[%emt 0:00:00]} Rc8 {[%emt 0:00:00]} 40. Rd6 {[%emt 0:00:24]} cxb5 {[%emt 0:00:00]} 41. Bxb7 {[%emt 0:49:46]} Rxc5 {[%emt 0:49:23]} 42. Rb6 {[%emt 0:02:41]} Rxh5 {[%emt 0:00:13]} 43. Kb3 {[%emt 0:00:00]} Rc5 {[%emt 0:00:20]} 44. Bc6 {[%emt 0:02:29]} Kd8 {[%emt 0:00:00]} 45. Bf3 {[%emt 0:00:00]} Kd7 {[%emt 0:00:00]} 46. Rb7+ {[%emt 0:00:00]} 1-0

[Event "DPMM 2023-24"]
[Site "Germany"]
[Date "2024.03.14"]
[Round "4.1"]
[White "Graf, Alexander"]
[Black "Nogly, Christoph"]
[Result "1-0"]
[WhiteElo "2526"]
[BlackElo "2228"]
[PlyCount "71"]
[EventDate "2024.03.14"]
[EventType "team-tourn"]
[EventCountry "GER"]
[TimeControl "40/6000:20/3000:0"]

1. Nf3 {[%emt 0:00:00]} d5 {[%emt 0:00:00]} 2. d4 {[%emt 0:00:00]} e6 {[%emt 0:00:00]} 3. Bf4 {[%emt 0:02:33]} Bd6 {[%emt 0:00:00]} 4. e3 {[%emt 0:01:21]} Bxf4 {[%emt 0:02:47]} 5. exf4 {[%emt 0:00:00]} Qd6 {[%emt 0:00:00]} 6. Qd2 {[%emt 0:02:51]} Nf6 {[%emt 0:01:56]} 7. Nc3 {[%emt 0:00:00]} O-O {[%emt 0:04:08]} 8. O-O-O {[%emt 0:02:54]} c5 {[%emt 0:11:30]} 9. dxc5 {[%emt 0:05:55]} Qxc5 {[%emt 0:00:50]} 10. Bd3 {[%emt 0:00:59]} Nc6 {[%emt 0:10:41]} 11. Rhe1 {[%emt 0:02:05]} b6 {[%emt 0:05:46]} 12. Ne5 {[%emt 0:09:28]} Bb7 {[%emt 0:10:35]} 13. f3 {[%emt 0:00:12]} Rac8 {[%emt 0:02:09]} 14. Kb1 {[%emt 0:00:45]} Rfd8 {[%emt 0:00:14]} 15. Nxc6 {[%emt 0:05:13]} Bxc6 {[%emt 0:02:35]} 16. Re5 {[%emt 0:07:15]} Qd6 {[%emt 0:14:31]} 17. Ba6 {[%emt 0:15:12]} Rb8 {[%emt 0:04:58]} 18. Nb5 {[%emt 0:01:09]} Bxb5 {[%emt 0:00:50]} 19. Bxb5 {[%emt 0:00:00]} a6 {[%emt 0:01:17]} 20. Bf1 {[%emt 0:00:00]} b5 {[%emt 0:00:00]} 21. Qd4 {[%emt 0:00:00]} Rdc8 {[%emt 0:06:45]} 22. g4 {[%emt 0:04:49]} Qc5 {[%emt 0:05:12]} 23. Qxc5 {[%emt 0:01:14]} Rxc5 {[%emt 0:00:00]} 24. f5 {[%emt 0:00:10]} exf5 {[%emt 0:07:05]} 25. Rxf5 {[%emt 0:04:33]} Re8 {[%emt 0:00:43]} 26. g5 {[%emt 0:00:08]} Nd7 {[%emt 0:00:00]} 27. b4 {[%emt 0:01:22]} Rcc8 {[%emt 0:02:00]} 28. a4 {[%emt 0:01:18]} g6 {[%emt 0:01:00]} 29. Rf4 {[%emt 0:00:13]} Nb6 {[%emt 0:01:50]} 30. axb5 {[%emt 0:00:23]} Na4 {[%emt 0:00:00]} 31. bxa6 {[%emt 0:00:16]} Nc3+ {[%emt 0:00:00]} 32. Kc1 {[%emt 0:00:00]} Nxd1 {[%emt 0:00:00]} 33. Kxd1 {[%emt 0:00:00]} Rc3 {[%emt 0:00:00]} 34. b5 {[%emt 0:00:00]} Ra3 {[%emt 0:00:00]} 35. Kd2 {[%emt 0:00:00]} Re6 {[%emt 0:00:00]} 36. Rf6 {[%emt 0:00:00]} 1-0

[Event "DPMM 2023-24"]
[Site "Germany"]
[Date "2024.03.14"]
[Round "4.1"]
[White "Schmidek, Emil"]
[Black "Bluebaum, Matthias"]
[Result "1/2-1/2"]
[WhiteElo "2439"]
[BlackElo "2655"]
[PlyCount "47"]
[EventDate "2024.03.14"]
[EventType "team-tourn"]
[EventCountry "GER"]
[TimeControl "40/6000:20/3000:0"]

1. d4 {[%emt 0:00:00]} Nf6 {[%emt 0:00:00]} 2. c4 {[%emt 0:00:00]} e6 {[%emt 0:00:00]} 3. Nc3 {[%emt 0:00:00]} Bb4 {[%emt 0:00:00]} 4. e3 {[%emt 0:00:00]} O-O {[%emt 0:00:00]} 5. Bd3 {[%emt 0:00:00]} d5 {[%emt 0:00:00]} 6. Nf3 {[%emt 0:00:00]} dxc4 {[%emt 0:00:00]} 7. Bxc4 {[%emt 0:00:00]} c5 {[%emt 0:00:00]} 8. O-O {[%emt 0:00:00]} Bd7 {[%emt 0:00:00]} 9. Ne5 {[%emt 0:25:46]} Nc6 {[%emt 0:06:51]} 10. Nxd7 {[%emt 0:01:22]} Qxd7 {[%emt 0:00:52]} 11. a3 {[%emt 0:07:19]} Ba5 {[%emt 0:11:45]} 12. dxc5 {[%emt 0:00:34]} Bxc3 {[%emt 0:00:00]} 13. bxc3 {[%emt 0:02:41]} Qc7 {[%emt 0:04:54]} 14. Qc2 {[%emt 0:07:00]} Ne5 {[%emt 0:11:23]} 15. Be2 {[%emt 0:08:09]} Qxc5 {[%emt 0:00:00]} 16. c4 {[%emt 0:03:11]} Rfc8 {[%emt 0:07:01]} 17. Bb2 {[%emt 0:01:48]} Nxc4 {[%emt 0:02:57]} 18. Rfc1 {[%emt 0:02:57]} b5 {[%emt 0:05:50]} 19. a4 {[%emt 0:01:05]} a6 {[%emt 0:16:06]} 20. axb5 {[%emt 0:00:13]} axb5 {[%emt 0:03:55]} 21. Rxa8 {[%emt 0:00:43]} Rxa8 {[%emt 0:00:00]} 22. Bxc4 {[%emt 0:00:00]} bxc4 {[%emt 0:00:00]} 23. Qxc4 {[%emt 0:00:00]} Qxc4 {[%emt 0:00:00]} 24. Rxc4 {[%emt 0:00:00]} 1/2-1/2

[Event "DPMM 2023-24"]
[Site "Germany"]
[Date "2024.01.27"]
[Round "10.1"]
[White "Wagner, Dennis"]
[Black "Wunder, Niklas"]
[Result "1-0"]
[ECO "D11"]
[WhiteElo "2620"]
[BlackElo "2067"]
[PlyCount "57"]
[EventDate "2024.03.14"]
[EventType "team-tourn"]
[EventCountry "GER"]
[TimeControl "40/6000:20/3000:0"]

1. d4 d5 2. c4 c6 3. Nf3 Nf6 4. g3 Bf5 5. Nc3 e6 6. Nh4 dxc4 7. Nxf5 exf5 8. e3 c5 9. Bxc4 cxd4 10. exd4 Bd6 11. Qf3 Nc6 12. Be3 Qd7 13. O-O O-O 14. Rad1 Rac8 15. a3 Rfd8 16. Rfe1 g6 17. Bg5 Be7 18. d5 Nxd5 19. Rxd5 Bxg5 20. Rxd7 Rxd7 21. Bd5 Nd4 22. Qd1 Bf6 23. Qa4 Rcd8 24. Re8+ Rxe8 25. Qxd7 Re7 26. Qc8+ Kg7 27. Kg2 b6 28. Bc4 Ne6 29. Nd5 1-0

[Event "DPMM 2023-24"]
[Site "Germany"]
[Date "2024.01.27"]
[Round "10.1"]
[White "Winterberg, Lukas"]
[Black "Womacka, Mathias"]
[Result "1-0"]
[ECO "E11"]
[WhiteElo "2420"]
[BlackElo "2363"]
[PlyCount "103"]
[EventDate "2024.03.14"]
[EventType "team-tourn"]
[EventCountry "GER"]
[TimeControl "40/6000:20/3000:0"]

1. d4 Nf6 2. Nf3 e6 3. c4 Bb4+ 4. Bd2 Qe7 5. g3 Bxd2+ 6. Qxd2 Nc6 7. Bg2 Ne4 8. Qc2 Qb4+ 9. Kf1 d5 10. e3 O-O 11. Nbd2 Nxd2+ 12. Nxd2 Ne7 13. Rc1 c6 14. h4 Qd6 15. Kg1 e5 16. cxd5 exd4 17. Nc4 Qf6 18. d6 Ng6 19. exd4 Rd8 20. h5 Nf8 21. d5 cxd5 22. Bxd5 Be6 23. Qd2 Rac8 24. Kg2 b5 25. Bxe6 Nxe6 26. Na5 Rxc1 27. Rxc1 g5 28. d7 Nf8 29. Rc8 Kg7 30. Rxd8 Qxd8 31. Nc6 Qxd7 32. Qxg5+ Ng6 33. Qxb5 Nh4+ 34. Kg1 Nf3+ 35. Kf1 Qd1+ 36. Kg2 Ne1+ 37. Kh3 Nd3 38. Qg5+ Kf8 39. Qd8+ Kg7 40. Qg5+ Kf8 41. Qd8+ Kg7 42. h6+ Kxh6 43. Qf6+ Kh5 44. Qxf7+ Kh6 45. Qf6+ Kh5 46. Qh4+ Kg6 47. Qg4+ Qxg4+ 48. Kxg4 Nxf2+ 49. Kh4 Nd1 50. b3 a6 51. Nb8 a5 52. a4 1-0

[Event "DPMM 2023-24"]
[Site "Germany"]
[Date "2024.01.27"]
[Round "10.1"]
[White "Bertholee, Rob"]
[Black "Engel, Bruno"]
[Result "1/2-1/2"]
[ECO "E94"]
[WhiteElo "2309"]
[BlackElo "2007"]
[PlyCount "83"]
[EventDate "2024.03.14"]
[EventType "team-tourn"]
[EventCountry "GER"]
[TimeControl "40/6000:20/3000:0"]

1. c4 d6 2. Nc3 e5 3. Nf3 Nf6 4. d4 exd4 5. Nxd4 g6 6. e4 Bg7 7. Be2 O-O 8. O-O Re8 9. f3 Nc6 10. Be3 Nd7 11. Qd2 Nc5 12. Rfd1 Ne6 13. Nc2 a5 14. Bf1 b6 15. Rac1 Bb7 16. b3 Qc8 17. Nd5 Ne5 18. Qf2 Nc5 19. Qh4 Bxd5 20. cxd5 f5 21. exf5 Qxf5 22. Nd4 Qf7 23. Bb5 Nxf3+ 24. Nxf3 Rxe3 25. Ng5 Bf6 26. Rf1 Bxg5 27. Qxg5 Qe7 28. Qh6 Re5 29. Rc3 Re1 30. Qd2 Rxf1+ 31. Bxf1 Rf8 32. Re3 Qf6 33. Bc4 Qf4 34. h3 Ne4 35. Qe1 Ng5 36. Re7 Rf7 37. Re8+ Rf8 38. Re7 Rf7 39. Re8+ Rf8 40. Re7 Rf7 41. Re8+ Rf8 42. Re7 1/2-1/2

[Event "DPMM 2023-24"]
[Site "Germany"]
[Date "2024.01.27"]
[Round "10.1"]
[White "Kuberczyk, Christoph"]
[Black "Brunke, Pascal"]
[Result "1/2-1/2"]
[ECO "E09"]
[WhiteElo "2290"]
[BlackElo "2267"]
[PlyCount "74"]
[EventDate "2024.03.14"]
[EventType "team-tourn"]
[EventCountry "GER"]
[TimeControl "40/6000:20/3000:0"]

1. d4 d5 2. c4 e6 3. Nf3 Nf6 4. g3 Be7 5. Bg2 O-O 6. O-O c6 7. Qc2 b6 8. Rd1 Nbd7 9. Nbd2 Bb7 10. e4 dxc4 11. Nxc4 c5 12. Ng5 h6 13. e5 Bxg2 14. exf6 Nxf6 15. Kxg2 hxg5 16. dxc5 Qc7 17. cxb6 axb6 18. Qe2 Rfc8 19. b3 Nd5 20. Bb2 Qb7 21. Kg1 b5 22. Ne5 Bf6 23. Qe4 b4 24. Rd4 Qb5 25. Rc4 Nc3 26. Bxc3 bxc3 27. Ng4 Qd5 28. Rxc8+ Rxc8 29. Nxf6+ gxf6 30. Qxd5 exd5 31. Kf1 Re8 32. Rd1 Ra8 33. a4 Rb8 34. Rxd5 Rxb3 35. Rc5 Ra3 36. a5 c2 37. Rxc2 Rxa5 1/2-1/2

[Event "DPMM 2023-24"]
[Site "Germany"]
[Date "2024.01.27"]
[Round "10.1"]
[White "Malek, Daniel"]
[Black "Ermitsch, Michael"]
[Result "1-0"]
[ECO "A28"]
[WhiteElo "2278"]
[BlackElo "2058"]
[PlyCount "64"]
[EventDate "2024.03.14"]
[EventType "team-tourn"]
[EventCountry "GER"]
[TimeControl "40/6000:20/3000:0"]

1. c4 e5 2. Nc3 Nf6 3. Nf3 Nc6 4. e3 Bb4 5. Qc2 O-O 6. Nd5 Nxd5 7. cxd5 Ne7 8. Qe4 Bd6 9. Nxe5 c6 10. dxc6 dxc6 11. Nf3 Bf5 12. Qh4 Qd7 13. Be2 c5 14. b3 b5 15. Bb2 Ng6 16. Qh5 Bg4 17. Qd5 Rad8 18. Qd3 a6 19. Qc3 f6 20. Qc2 Rfe8 21. O-O Nf4 22. Bd1 Nd3 23. Rb1 Nb4 24. Qc3 Nxa2 25. Qa5 Nb4 26. d4 Bf5 27. Ra1 Nd3 28. Bc3 b4 29. Bd2 Be4 30. Qxa6 Qf5 31. Be2 Re6 32. Qb5 Nb2 1-0

[Event "DPMM 2023-24"]
[Site "Germany"]
[Date "2024.01.27"]
[Round "10.1"]
[White "Tscheuschner, Georg"]
[Black "Grossmann, Piet"]
[Result "1/2-1/2"]
[ECO "A13"]
[WhiteElo "2250"]
[BlackElo "1932"]
[PlyCount "51"]
[EventDate "2024.03.14"]
[EventType "team-tourn"]
[EventCountry "GER"]
[TimeControl "40/6000:20/3000:0"]

1. c4 e6 2. Nf3 Nf6 3. Nc3 d5 4. e3 Be7 5. b3 O-O 6. Bb2 c5 7. cxd5 Nxd5 8. Qc2 Nb4 9. Qb1 b6 10. a3 N4c6 11. h4 h6 12. g4 Ba6 13. Bxa6 Nxa6 14. g5 h5 15. Ne4 Qd5 16. Nf6+ Bxf6 17. gxf6 g6 18. Rg1 Qf5 19. Qd1 Rfd8 20. Rg5 Qe4 21. Rc1 Na5 22. Rc3 c4 23. Re5 Qg4 24. Rg5 Qe4 25. Re5 Qg4 26. Rg5 1/2-1/2

[Event "DPMM 2023-24"]
[Site "Germany"]
[Date "2024.01.27"]
[Round "10.1"]
[White "Tonndorf, Matthias"]
[Black "Eichstaedt, Mirko"]
[Result "1/2-1/2"]
[ECO "A13"]
[WhiteElo "2159"]
[BlackElo "2229"]
[PlyCount "126"]
[EventDate "2024.03.14"]
[EventType "team-tourn"]
[EventCountry "GER"]
[TimeControl "40/6000:20/3000:0"]

1. b3 Nf6 2. Bb2 e6 3. e3 b6 4. Nf3 Bb7 5. Be2 c5 6. O-O Be7 7. c4 O-O 8. Nc3 d5 9. cxd5 Nxd5 10. d4 Nxc3 11. Bxc3 Nc6 12. dxc5 Bxc5 13. Qc2 Qe7 14. Rad1 Rfd8 15. Bd3 h6 16. Qb2 Qf8 17. Bb1 Rxd1 18. Rxd1 Rd8 19. Rxd8 Qxd8 20. Qc2 f5 21. h3 Nb4 22. Qe2 Nd5 23. Bb2 Nf6 24. Qd2 Qxd2 25. Nxd2 Bb4 26. Nc4 Ne4 27. a3 Be7 28. Be5 b5 29. Na5 Bd5 30. b4 Nd2 31. Bd3 a6 32. Bc3 Nb3 33. Nxb3 Bxb3 34. e4 g6 35. f4 Bh4 36. Kh2 Bf2 37. g4 Bc4 38. Bxc4 bxc4 39. Kg2 Bb6 40. Kf3 Kf7 41. a4 h5 42. gxh5 gxh5 43. Bd2 Ke7 44. Be3 Bd8 45. Bc5+ Kd7 46. Ke3 Bf6 47. e5 Bh4 48. b5 axb5 49. axb5 Kc7 50. Kd2 Kb7 51. Be3 Bd8 52. Kc3 Be7 53. Kxc4 Bd8 54. Kb4 Be7+ 55. Bc5 Bh4 56. Bf8 Kb6 57. Bh6 Bf2 58. Bg5 Bc5+ 59. Kc4 Be3 60. Bd8+ Kb7 61. Bg5 Kb6 62. Bh6 Bc1 63. Bg5 Be3 1/2-1/2

[Event "DPMM 2023-24"]
[Site "Germany"]
[Date "2024.01.27"]
[Round "10.1"]
[White "Lang, Matthias"]
[Black "Parsch, Christian"]
[Result "1/2-1/2"]
[ECO "D03"]
[WhiteElo "2144"]
[BlackElo "1984"]
[PlyCount "118"]
[EventDate "2024.03.14"]
[EventType "team-tourn"]
[EventCountry "GER"]
[TimeControl "40/6000:20/3000:0"]

1. d4 d5 2. Nf3 Nf6 3. Bg5 e6 4. e3 Be7 5. Bd3 O-O 6. O-O Nbd7 7. Nbd2 b6 8. c3 Bb7 9. Qb1 h6 10. Bh4 c5 11. Ne5 Nxe5 12. dxe5 Nd7 13. Bxe7 Qxe7 14. f4 f6 15. exf6 Rxf6 16. e4 Raf8 17. exd5 exd5 18. Re1 Qd6 19. g3 Re6 20. Rxe6 Qxe6 21. Qe1 Re8 22. Qxe6+ Rxe6 23. Kf2 Kf7 24. Bf5 Rd6 25. Nf3 Kf6 26. Bg4 Nf8 27. Re1 Ne6 28. Ne5 g5 29. Bxe6 Rxe6 30. Ng4+ Kf7 31. Rxe6 Kxe6 32. Nxh6 gxf4 33. gxf4 d4 34. cxd4 cxd4 35. Ke2 Ba6+ 36. Kf3 Bb7+ 37. Ke2 Ba6+ 38. Kd2 Kf6 39. a4 Bc4 40. Ng4+ Kf5 41. Ne5 Bb3 42. a5 Kxf4 43. axb6 axb6 44. Nd7 b5 45. Kd3 Kg4 46. Ne5+ Kh3 47. Nf3 Bd5 48. Nxd4 Bc4+ 49. Kc3 Kxh2 50. Kb4 Kg3 51. Nxb5 Bf1 52. Kc5 Kf4 53. Nd6 Ke5 54. Nc4+ Ke6 55. b4 Kd7 56. b5 Bxc4 57. Kxc4 Kc7 58. Kc5 Kb7 59. b6 Kb8 1/2-1/2

[Event "DPMM 2023-24"]
[Site "Germany"]
[Date "2024.01.27"]
[Round "10.1"]
[White "Vogel, Christian"]
[Black "Stricker, Florian"]
[Result "1/2-1/2"]
[ECO "D02"]
[WhiteElo "2114"]
[BlackElo "2214"]
[PlyCount "120"]
[EventDate "2024.03.14"]
[EventType "team-tourn"]
[EventCountry "GER"]
[TimeControl "40/6000:20/3000:0"]

1. Nf3 d5 2. g3 Nf6 3. Bg2 e6 4. O-O Bd6 5. d4 O-O 6. c4 h6 7. Nbd2 b6 8. Qc2 Nbd7 9. e4 dxe4 10. Nxe4 Nxe4 11. Qxe4 Rb8 12. Ne5 Bxe5 13. dxe5 Bb7 14. Qe2 Bxg2 15. Kxg2 Qc8 16. f4 Nc5 17. Be3 Qb7+ 18. Qf3 Qxf3+ 19. Kxf3 Nd3 20. Rab1 Rfd8 21. Rfd1 Nb4 22. a3 Nc6 23. b4 Kf8 24. Ke4 Ke8 25. g4 h5 26. h3 Rxd1 27. Rxd1 hxg4 28. hxg4 Rd8 29. Rh1 Kf8 30. Rh8+ Ke7 31. Rxd8 Kxd8 32. Bd2 g6 33. b5 Nb8 34. a4 a6 35. Bb4 axb5 36. axb5 Kd7 37. c5 bxc5 38. Bxc5 Kc8 39. Kd4 c6 40. Kc4 cxb5+ 41. Kxb5 Kd7 42. Kc4 Kc6 43. Ba7 Na6 44. Kd4 Nc7 45. Ke4 Nb5 46. Be3 Nc3+ 47. Kd4 Nd5 48. Bd2 Ne7 49. Bb4 Nd5 50. Bd2 Kb5 51. f5 Ne7 52. fxe6 fxe6 53. Bg5 Nd5 54. Bd2 Nb4 55. Ke4 Nd5 56. Kd4 Kc6 57. Kc4 Nb6+ 58. Kd4 Nd7 59. Bg5 Nb6 60. Bd2 Nd5 1/2-1/2

[Event "DPMM 2023-24"]
[Site "Germany"]
[Date "2024.01.27"]
[Round "10.1"]
[White "Oelmann, Henry"]
[Black "Henning, Marvin"]
[Result "0-1"]
[ECO "E90"]
[WhiteElo "1970"]
[BlackElo "2099"]
[PlyCount "74"]
[EventDate "2024.03.14"]
[EventType "team-tourn"]
[EventCountry "GER"]
[TimeControl "40/6000:20/3000:0"]

1. Nf3 g6 2. c4 Bg7 3. d4 d6 4. Nc3 Nf6 5. h3 O-O 6. e4 c6 7. Bg5 Qb6 8. Qd2 e5 9. c5 dxc5 10. dxe5 Nfd7 11. Bh6 Re8 12. Bxg7 Kxg7 13. Bc4 Qb4 14. Bb3 Nxe5 15. Nxe5 Rxe5 16. O-O-O Nd7 17. g4 Nf6 18. Qd6 Re8 19. g5 Nh5 20. f4 Be6 21. Bxe6 Rxe6 22. Qc7 Qb6 23. Qd7 Ree8 24. f5 Rad8 25. f6+ Kg8 26. Qg4 h6 27. Rhg1 c4 28. Qe2 Nf4 29. Qxc4 Nd3+ 30. Rxd3 Qxg1+ 31. Kc2 Qxg5 32. Rf3 Rd2+ 33. Kb3 Qg2 34. Rf4 Rxb2+ 35. Ka3 Rb6 36. Ne2 Qg5 37. Qc3 Qb5 0-1

[Event "DPMM 2023-24"]
[Site "Germany"]
[Date "2024.01.27"]
[Round "10.2"]
[White "Haack, Kevin"]
[Black "Ronge, Tim"]
[Result "0-1"]
[ECO "D30"]
[WhiteElo "2259"]
[BlackElo "2315"]
[PlyCount "80"]
[EventDate "2024.03.14"]
[EventType "team-tourn"]
[EventCountry "GER"]
[TimeControl "40/6000:20/3000:0"]

1. d4 d5 2. c4 e6 3. Nf3 h6 4. g3 Nf6 5. Bg2 Bd6 6. O-O O-O 7. Nc3 Nc6 8. b3 dxc4 9. bxc4 e5 10. e3 exd4 11. exd4 Re8 12. h3 Bf5 13. Be3 Bxg3 14. Bxh6 Bd6 15. Bg5 Qd7 16. Bxf6 gxf6 17. Nd5 Kg7 18. Nh4 Rh8 19. Nxf5+ Qxf5 20. c5 Bf4 21. Re1 Rh4 22. Rb1 Rd8 23. Ne3 Qg5 24. d5 Ne5 25. Kf1 Rg8 26. Qc2 Kh8 27. Rb4 Rh5 28. Qe4 Ng6 29. Qf3 f5 30. Bh1 Be5 31. Ng2 f4 32. Rxb7 Kg7 33. Rbb1 Rgh8 34. h4 Nxh4 35. Nxh4 Rxh4 36. Ke2 Qf5 37. Qe4 f3+ 38. Kd3 Rxe4 39. Rxe4 Rh4 40. Rbe1 Bf6 0-1

[Event "DPMM 2023-24"]
[Site "Germany"]
[Date "2024.01.27"]
[Round "10.2"]
[White "Mueller, Dominik"]
[Black "Helmer, Jan"]
[Result "1-0"]
[ECO "A21"]
[WhiteElo "2230"]
[BlackElo "2206"]
[PlyCount "39"]
[EventDate "2024.03.14"]
[EventType "team-tourn"]
[EventCountry "GER"]
[TimeControl "40/6000:20/3000:0"]

1. c4 e5 2. Nc3 Bb4 3. Nd5 Bc5 4. Nf3 c6 5. Nc3 d6 6. d4 exd4 7. Nxd4 Qh4 8. e3 Nf6 9. g3 Qg4 10. Qxg4 Bxg4 11. Bg2 O-O 12. h3 Bd7 13. O-O Na6 14. Rd1 Rad8 15. e4 Nc7 16. Bg5 Nce8 17. Nb3 Bb4 18. Ne2 Be6 19. a3 Bxc4 20. Nec1 1-0

[Event "DPMM 2023-24"]
[Site "Germany"]
[Date "2024.01.27"]
[Round "10.2"]
[White "Knudsen, Simon"]
[Black "Jenner, Meikel"]
[Result "0-1"]
[ECO "B30"]
[WhiteElo "2226"]
[BlackElo "1980"]
[PlyCount "140"]
[EventDate "2024.03.14"]
[EventType "team-tourn"]
[EventCountry "GER"]
[TimeControl "40/6000:20/3000:0"]

1. e4 c5 2. Nf3 Nc6 3. Bb5 e5 4. O-O Bd6 5. c3 a6 6. Ba4 Nge7 7. d4 cxd4 8. cxd4 exd4 9. Nxd4 Nxd4 10. Qxd4 Qc7 11. h3 O-O 12. Nc3 b5 13. Bb3 Bc5 14. Qd3 Bb7 15. Bg5 Ng6 16. Rac1 Qe5 17. Be3 d6 18. Rfd1 Rae8 19. Bxc5 dxc5 20. Qd6 Qg5 21. Kh2 c4 22. Bc2 f5 23. Qg3 Qxg3+ 24. Kxg3 fxe4 25. Re1 Nf4 26. Nxe4 Re6 27. Kh2 Nd3 28. Bxd3 cxd3 29. Nc5 d2 30. Nxe6 dxe1=Q 31. Rxe1 Rxf2 32. Kg3 Rxg2+ 33. Kf4 Rf2+ 34. Kg3 Rxb2 35. Nd8 Rg2+ 36. Kf4 g5+ 37. Kf5 Bd5 38. Kf6 Rf2+ 39. Kxg5 Bxa2 40. Nc6 h6+ 41. Kg4 Rf6 42. Re8+ Kf7 43. Re7+ Kf8 44. Rc7 Be6+ 45. Kg3 Rf7 46. Nd4 Bd5 47. Rc5 Rd7 48. Nf5 Be6 49. Rc8+ Kf7 50. Nxh6+ Kg7 51. Rc6 Rd3+ 52. Kf4 Rxh3 53. Rxe6 Rxh6 54. Re7+ Kf8 55. Ra7 Rb6 56. Ke3 Ke8 57. Kd3 Kd8 58. Kc3 Rc6+ 59. Kb4 Rc4+ 60. Ka5 Ra4+ 61. Kb6 b4 62. Kc5 a5 63. Kd6 Kc8 64. Kc6 Kb8 65. Rb7+ Ka8 66. Kb6 b3 67. Rh7 Rb4+ 68. Ka6 b2 69. Rh8+ Rb8 70. Rh7 Rb6+ 0-1

[Event "DPMM 2023-24"]
[Site "Germany"]
[Date "2024.01.27"]
[Round "10.2"]
[White "Haufe, Laurin"]
[Black "Heinze, Brian"]
[Result "1-0"]
[ECO "C45"]
[WhiteElo "2171"]
[BlackElo "1863"]
[PlyCount "57"]
[EventDate "2024.03.14"]
[EventType "team-tourn"]
[EventCountry "GER"]
[TimeControl "40/6000:20/3000:0"]

1. e4 e5 2. Nf3 Nc6 3. d4 exd4 4. Nxd4 Nf6 5. Nxc6 bxc6 6. e5 Qe7 7. Qe2 Nd5 8. c4 Ba6 9. b3 g6 10. f4 Bg7 11. Qf2 Nb6 12. c5 Bxf1 13. cxb6 Ba6 14. Ba3 d6 15. bxc7 c5 16. Nc3 Qxc7 17. O-O-O Qa5 18. Na4 dxe5 19. Bxc5 e4 20. f5 Rc8 21. Rhe1 Bb7 22. Kb1 Be5 23. fxg6 hxg6 24. Rd7 Kxd7 25. Qxf7+ Kc6 26. Qe6+ Kb5 27. Qc4+ Kc6 28. Bb4+ Kd7 29. Qf7+ 1-0